[Event "Titled Tuesday Blitz January 31 Late 2023"]
[White "Golubev, Mikhail"]
[Black "Averjanov, Alexey"]
[WhiteFideId "14100983"]
[BlackFideId "14109867"]
[WhiteElo "2461"]
[BlackElo "2399"]
[Result "1-0"]
[Round "10"]
[TimeControl "180+2"]
[Date "2023.01.31"]
[WhiteClock "0:00:04"]
[BlackClock "0:00:48"]

1. e4 {[%clk 0:03:00]}  c6 {[%clk 0:02:59]} 2. d4 {[%clk 0:03:00]}  d5 {[%clk 0:03:00]} 3. Nc3 {[%clk 0:03:00]}  dxe4 {[%clk 0:03:00]} 4. Nxe4 {[%clk 0:03:00]}  Bf5 {[%clk 0:03:00]} 5. Ng3 {[%clk 0:02:59]}  Bg6 {[%clk 0:03:01]} 6. c3 {[%clk 0:03:00]}  Nf6 {[%clk 0:02:59]} 7. Nh3 {[%clk 0:02:53]}  e6 {[%clk 0:02:59]} 8. Nf4 {[%clk 0:02:53]}  Bd6 {[%clk 0:02:59]} 9. h4 {[%clk 0:02:53]}  Qc7 {[%clk 0:02:59]} 10. Qf3 {[%clk 0:02:42]}  Bxf4 {[%clk 0:02:59]} 11. Bxf4 {[%clk 0:02:41]}  Qb6 {[%clk 0:02:59]} 12. O-O-O {[%clk 0:02:18]}  h6 {[%clk 0:02:57]} 13. Bd3 {[%clk 0:02:06]}  Bxd3 {[%clk 0:02:57]} 14. Rxd3 {[%clk 0:02:06]}  Nbd7 {[%clk 0:02:56]} 15. Kb1 {[%clk 0:01:49]}  Nd5 {[%clk 0:02:55]} 16. Bd2 {[%clk 0:01:44]}  N7f6 {[%clk 0:02:54]} 17. c4 {[%clk 0:01:37]}  Ne7 {[%clk 0:02:45]} 18. Bf4 {[%clk 0:01:25]}  Ng6 {[%clk 0:02:43]} 19. Bd6 {[%clk 0:01:14]}  O-O-O {[%clk 0:02:42]} 20. c5 {[%clk 0:00:54]}  Qb5 {[%clk 0:02:41]} 21. Rc1 {[%clk 0:00:49]}  Rd7 {[%clk 0:02:33]} 22. Rb3 {[%clk 0:00:47]}  Qa5 {[%clk 0:02:33]} 23. Ra3 {[%clk 0:00:47]}  Qd2 {[%clk 0:02:31]} 24. Rxa7 {[%clk 0:00:43]}  Rxd6 {[%clk 0:02:30]} 25. cxd6 {[%clk 0:00:40]}  Kb8 {[%clk 0:02:19]} 26. Rxb7+ {[%clk 0:00:38]}  Kxb7 {[%clk 0:02:17]} 27. Qxc6+ {[%clk 0:00:30]}  Kb8 {[%clk 0:02:16]} 28. d7 {[%clk 0:00:13]}  Qd3+ {[%clk 0:02:12]} 29. Ka1 {[%clk 0:00:13]}  Nxd7 {[%clk 0:01:38]} 30. Qxd7 {[%clk 0:00:13]}  Nf4 {[%clk 0:01:24]} 31. Qc7+ {[%clk 0:00:12]}  Ka8 {[%clk 0:01:18]} 32. Qxf4 {[%clk 0:00:12]}  Rb8 {[%clk 0:01:18]} 33. Qe3 {[%clk 0:00:11]}  Qb5 {[%clk 0:01:17]} 34. Qa3+ {[%clk 0:00:10]}  Kb7 {[%clk 0:01:17]} 35. Qb3 {[%clk 0:00:11]}  Qxb3 {[%clk 0:01:16]} 36. axb3 {[%clk 0:00:11]}  Rd8 {[%clk 0:01:17]} 37. Rc4 {[%clk 0:00:10]}  Rd5 {[%clk 0:01:14]} 38. Kb1 {[%clk 0:00:10]}  g5 {[%clk 0:01:11]} 39. h5 {[%clk 0:00:09]}  f5 {[%clk 0:01:11]} 40. Kc2 {[%clk 0:00:10]}  f4 {[%clk 0:01:11]} 41. Ne4 {[%clk 0:00:09]}  g4 {[%clk 0:01:11]} 42. f3 {[%clk 0:00:09]}  g3 {[%clk 0:01:10]} 43. Nc5+ {[%clk 0:00:09]}  Kb6 {[%clk 0:01:10]} 44. Nxe6 {[%clk 0:00:09]}  Rxh5 {[%clk 0:01:09]} 45. Nxf4 {[%clk 0:00:10]}  Rh2 {[%clk 0:01:09]} 46. Kd3 {[%clk 0:00:08]}  h5 {[%clk 0:01:09]} 47. Ke4 {[%clk 0:00:07]}  h4 {[%clk 0:01:10]} 48. d5 {[%clk 0:00:08]}  h3 {[%clk 0:01:08]} 49. gxh3 {[%clk 0:00:08]}  Rxb2 {[%clk 0:01:06]} 50. d6 {[%clk 0:00:08]}  Rd2 {[%clk 0:01:05]} 51. Nd5+ {[%clk 0:00:07]}  Kb5 {[%clk 0:01:04]} 52. d7 {[%clk 0:00:06]}  g2 {[%clk 0:01:02]} 53. Rc1 {[%clk 0:00:06]}  Re2+ {[%clk 0:00:59]} 54. Kf4 {[%clk 0:00:06]}  Rc2 {[%clk 0:00:57]} 55. Rd1 {[%clk 0:00:04]}  Rd2 {[%clk 0:00:57]} 56. Rxd2 {[%clk 0:00:04]}  g1=Q {[%clk 0:00:57]} 57. Nc7+ {[%clk 0:00:04]}  Kb4 {[%clk 0:00:55]} 58. d8=Q {[%clk 0:00:05]}  Qc1 {[%clk 0:00:50]} 59. Qd6+ {[%clk 0:00:04]}  Ka5 {[%clk 0:00:48]} 60. Qd5+ {[%clk 0:00:02]}  Kb6 {[%clk 0:00:47]} 61. Qb5+ {[%clk 0:00:02]}  Kxc7 {[%clk 0:00:47]} 62. Qc4+ {[%clk 0:00:02]}  Qxc4+ {[%clk 0:00:46]} 63. bxc4 {[%clk 0:00:03]}  Kc6 {[%clk 0:00:47]} 64. h4 {[%clk 0:00:03]}  Kc5 {[%clk 0:00:48]} 65. h5 {[%clk 0:00:04]} 1-0


[Site "https://www.chess.com"]

[Event "Titled Tuesday Blitz January 31 Late 2023"]
[White "Svane, Frederik"]
[Black "Prydun, Andriy"]
[WhiteFideId "12923044"]
[BlackFideId "14145898"]
[WhiteElo "2600"]
[BlackElo "2134"]
[Result "1-0"]
[Round "10"]
[TimeControl "180+2"]
[Date "2023.01.31"]
[WhiteClock "0:00:12"]
[BlackClock "0:00:02"]

1. e4 {[%clk 0:03:00]}  c6 {[%clk 0:02:59]} 2. d4 {[%clk 0:03:01]}  d5 {[%clk 0:02:56]} 3. exd5 {[%clk 0:03:02]}  cxd5 {[%clk 0:02:54]} 4. c3 {[%clk 0:03:02]}  Nd7 {[%clk 0:02:44]} 5. Nf3 {[%clk 0:02:40]}  Nb6 {[%clk 0:02:45]} 6. a4 {[%clk 0:02:36]}  a6 {[%clk 0:02:24]} 7. a5 {[%clk 0:02:35]}  Nd7 {[%clk 0:02:24]} 8. Bf4 {[%clk 0:02:31]}  Ngf6 {[%clk 0:02:22]} 9. Nbd2 {[%clk 0:02:30]}  Nb8 {[%clk 0:02:04]} 10. Bd3 {[%clk 0:02:26]}  Nc6 {[%clk 0:02:02]} 11. Nb3 {[%clk 0:02:26]}  Bg4 {[%clk 0:01:59]} 12. Nc5 {[%clk 0:02:21]}  Qc8 {[%clk 0:01:45]} 13. b4 {[%clk 0:02:05]}  e6 {[%clk 0:01:42]} 14. O-O {[%clk 0:02:03]}  Bxc5 {[%clk 0:01:33]} 15. bxc5 {[%clk 0:02:00]}  O-O {[%clk 0:01:34]} 16. h3 {[%clk 0:01:58]}  Bh5 {[%clk 0:01:33]} 17. Re1 {[%clk 0:01:48]}  Nd7 {[%clk 0:01:28]} 18. Bd6 {[%clk 0:01:47]}  Re8 {[%clk 0:01:21]} 19. g4 {[%clk 0:01:38]}  Bg6 {[%clk 0:01:21]} 20. Bxg6 {[%clk 0:01:38]}  hxg6 {[%clk 0:01:21]} 21. Qa4 {[%clk 0:01:36]}  Na7 {[%clk 0:01:12]} 22. c4 {[%clk 0:01:31]}  dxc4 {[%clk 0:01:09]} 23. Qxc4 {[%clk 0:01:32]}  Nb5 {[%clk 0:01:10]} 24. Bg3 {[%clk 0:01:28]}  Qc6 {[%clk 0:01:05]} 25. Ng5 {[%clk 0:01:28]}  Nf6 {[%clk 0:01:01]} 26. Be5 {[%clk 0:01:24]}  Nd5 {[%clk 0:00:57]} 27. Ne4 {[%clk 0:01:24]}  Rad8 {[%clk 0:00:54]} 28. Rad1 {[%clk 0:01:23]}  Re7 {[%clk 0:00:24]} 29. Qb3 {[%clk 0:01:15]}  Red7 {[%clk 0:00:17]} 30. Qg3 {[%clk 0:01:15]}  f6 {[%clk 0:00:15]} 31. Bd6 {[%clk 0:01:16]}  Nxd6 {[%clk 0:00:09]} 32. Nxd6 {[%clk 0:01:16]}  Rxd6 {[%clk 0:00:09]} 33. cxd6 {[%clk 0:01:16]}  Qxd6 {[%clk 0:00:10]} 34. Qxd6 {[%clk 0:01:03]}  Rxd6 {[%clk 0:00:11]} 35. Rb1 {[%clk 0:00:56]}  b6 {[%clk 0:00:11]} 36. axb6 {[%clk 0:00:56]}  Nxb6 {[%clk 0:00:12]} 37. Rec1 {[%clk 0:00:52]}  Nd5 {[%clk 0:00:08]} 38. Rb8+ {[%clk 0:00:48]}  Kh7 {[%clk 0:00:05]} 39. h4 {[%clk 0:00:47]}  g5 {[%clk 0:00:06]} 40. h5 {[%clk 0:00:48]}  g6 {[%clk 0:00:03]} 41. Rcc8 {[%clk 0:00:35]}  gxh5 {[%clk 0:00:03]} 42. Rh8+ {[%clk 0:00:35]}  Kg7 {[%clk 0:00:03]} 43. gxh5 {[%clk 0:00:34]}  Nf4 {[%clk 0:00:03]} 44. h6+ {[%clk 0:00:34]}  Kg6 {[%clk 0:00:03]} 45. Rbg8+ {[%clk 0:00:25]}  Kh5 {[%clk 0:00:01]} 46. h7 {[%clk 0:00:23]}  Rd7 {[%clk 0:00:01]} 47. Rf8 {[%clk 0:00:18]}  Kg4 {[%clk 0:00:02]} 48. Rxf6 {[%clk 0:00:18]}  Rxd4 {[%clk 0:00:02]} 49. Rxf4+ {[%clk 0:00:14]}  Rxf4 {[%clk 0:00:02]} 50. Ra8 {[%clk 0:00:12]} 1-0


[Site "https://www.chess.com"]

[Event "Titled Tuesday Blitz January 31 Late 2023"]
[White "Dourerassou, Jonathan"]
[Black "ArchibaldCerveza29"]
[WhiteFideId "628050"]
[WhiteElo "2414"]
[BlackElo "2532"]
[Result "1-0"]
[Round "10"]
[TimeControl "180+2"]
[Date "2023.01.31"]
[WhiteClock "0:02:03"]
[BlackClock "0:00:14"]

1. d4 {[%clk 0:02:56]}  d5 {[%clk 0:02:59]} 2. Bf4 {[%clk 0:02:54]}  c5 {[%clk 0:02:58]} 3. e3 {[%clk 0:02:52]}  Nc6 {[%clk 0:02:57]} 4. Nf3 {[%clk 0:02:51]}  Nf6 {[%clk 0:02:57]} 5. Nbd2 {[%clk 0:02:51]}  g6 {[%clk 0:02:56]} 6. c3 {[%clk 0:02:52]}  Qb6 {[%clk 0:02:55]} 7. Qc1 {[%clk 0:02:51]}  Bg7 {[%clk 0:02:54]} 8. h3 {[%clk 0:02:51]}  O-O {[%clk 0:02:54]} 9. Bd3 {[%clk 0:02:50]}  Re8 {[%clk 0:02:51]} 10. O-O {[%clk 0:02:49]}  a5 {[%clk 0:02:47]} 11. Bh2 {[%clk 0:02:48]}  a4 {[%clk 0:02:45]} 12. Re1 {[%clk 0:02:48]}  Bf5 {[%clk 0:02:27]} 13. Bxf5 {[%clk 0:02:43]}  gxf5 {[%clk 0:02:28]} 14. Ne5 {[%clk 0:02:43]}  Ne4 {[%clk 0:02:23]} 15. Nxe4 {[%clk 0:02:43]}  fxe4 {[%clk 0:02:24]} 16. Nd7 {[%clk 0:02:41]}  Qd8 {[%clk 0:02:15]} 17. Ne5 {[%clk 0:02:31]}  Nxe5 {[%clk 0:01:59]} 18. dxe5 {[%clk 0:02:32]}  e6 {[%clk 0:01:55]} 19. Qd1 {[%clk 0:02:31]}  Qg5 {[%clk 0:01:54]} 20. Qg4 {[%clk 0:02:28]}  Qxg4 {[%clk 0:01:50]} 21. hxg4 {[%clk 0:02:29]}  Ra5 {[%clk 0:01:47]} 22. Red1 {[%clk 0:02:29]}  Rb5 {[%clk 0:01:21]} 23. Rd2 {[%clk 0:02:28]}  Kf8 {[%clk 0:01:19]} 24. Rc1 {[%clk 0:02:27]}  c4 {[%clk 0:01:16]} 25. f4 {[%clk 0:02:26]}  Ke7 {[%clk 0:01:11]} 26. a3 {[%clk 0:02:25]}  Rc8 {[%clk 0:01:09]} 27. Bg3 {[%clk 0:02:25]}  Rc6 {[%clk 0:01:09]} 28. Bh4+ {[%clk 0:02:23]}  Kd7 {[%clk 0:01:07]} 29. Rcc2 {[%clk 0:02:19]}  Rcb6 {[%clk 0:01:05]} 30. Kh2 {[%clk 0:02:19]}  Bf8 {[%clk 0:01:05]} 31. Kg3 {[%clk 0:02:18]}  Bc5 {[%clk 0:01:03]} 32. Re2 {[%clk 0:02:15]}  Rb3 {[%clk 0:00:54]} 33. f5 {[%clk 0:02:14]}  h6 {[%clk 0:00:44]} 34. Kf4 {[%clk 0:02:14]}  Ra6 {[%clk 0:00:36]} 35. Bf6 {[%clk 0:02:13]}  Ra8 {[%clk 0:00:35]} 36. g3 {[%clk 0:02:13]}  b5 {[%clk 0:00:21]} 37. Rh2 {[%clk 0:02:13]}  Bxa3 {[%clk 0:00:21]} 38. bxa3 {[%clk 0:02:12]}  Rxa3 {[%clk 0:00:22]} 39. Rxh6 {[%clk 0:02:10]}  Rb3 {[%clk 0:00:22]} 40. Rh7 {[%clk 0:02:10]}  Rf8 {[%clk 0:00:22]} 41. g5 {[%clk 0:02:08]}  exf5 {[%clk 0:00:17]} 42. g6 {[%clk 0:02:08]}  Ke6 {[%clk 0:00:18]} 43. g7 {[%clk 0:02:07]}  Rg8 {[%clk 0:00:16]} 44. Rh8 {[%clk 0:02:07]}  Rxg7 {[%clk 0:00:15]} 45. Bxg7 {[%clk 0:02:07]}  a3 {[%clk 0:00:16]} 46. Rd8 {[%clk 0:02:03]}  Ke7 {[%clk 0:00:14]} 47. Bf6+ {[%clk 0:02:02]}  Ke6 {[%clk 0:00:14]} 48. Rd6# {[%clk 0:02:03]} 1-0


[Site "https://www.chess.com"]

[Event "Titled Tuesday Blitz January 31 Late 2023"]
[White "Real_OceanStorm"]
[Black "Veiga, Jose Francisco R P Neves"]
[BlackFideId "1930087"]
[WhiteElo "2671"]
[BlackElo "2406"]
[Result "0-1"]
[Round "10"]
[TimeControl "180+2"]
[Date "2023.01.31"]
[WhiteClock "0:02:21"]
[BlackClock "0:01:49"]

1. Nf3 {[%clk 0:03:00]}  Nc6 {[%clk 0:02:58]} 2. b3 {[%clk 0:03:01]}  e5 {[%clk 0:02:57]} 3. e4 {[%clk 0:03:00]}  Bc5 {[%clk 0:02:53]} 4. Bb2 {[%clk 0:03:00]}  d6 {[%clk 0:02:53]} 5. h3 {[%clk 0:03:00]}  f5 {[%clk 0:02:52]} 6. d3 {[%clk 0:02:58]}  Nf6 {[%clk 0:02:44]} 7. Be2 {[%clk 0:02:58]}  fxe4 {[%clk 0:02:42]} 8. dxe4 {[%clk 0:02:59]}  Nxe4 {[%clk 0:02:42]} 9. O-O {[%clk 0:02:58]}  Nf6 {[%clk 0:02:42]} 10. Nc3 {[%clk 0:02:58]}  O-O {[%clk 0:02:41]} 11. Na4 {[%clk 0:02:58]}  Bb6 {[%clk 0:02:40]} 12. Nxb6 {[%clk 0:02:57]}  axb6 {[%clk 0:02:41]} 13. a4 {[%clk 0:02:57]}  Qe7 {[%clk 0:02:40]} 14. Re1 {[%clk 0:02:57]}  Kh8 {[%clk 0:02:38]} 15. Bb5 {[%clk 0:02:57]}  Bf5 {[%clk 0:02:36]} 16. c3 {[%clk 0:02:57]}  Qf7 {[%clk 0:02:31]} 17. Ng5 {[%clk 0:02:39]}  Qg6 {[%clk 0:02:30]} 18. Nf3 {[%clk 0:02:37]}  Bxh3 {[%clk 0:02:20]} 19. Nh4 {[%clk 0:02:36]}  Qg4 {[%clk 0:02:17]} 20. Bxc6 {[%clk 0:02:35]}  bxc6 {[%clk 0:02:15]} 21. Qd3 {[%clk 0:02:35]}  Qxh4 {[%clk 0:02:12]} 22. gxh3 {[%clk 0:02:35]}  Nh5 {[%clk 0:02:10]} 23. Qe3 {[%clk 0:02:34]}  Nf4 {[%clk 0:01:56]} 24. Kh2 {[%clk 0:02:21]}  Nxh3 {[%clk 0:01:49]} 0-1


[Site "https://www.chess.com"]

[Event "Titled Tuesday Blitz January 31 Late 2023"]
[White "Gubajdullin, Alexei"]
[Black "Ehlvest, Jaan"]
[WhiteFideId "4141202"]
[BlackFideId "4500016"]
[WhiteElo "2285"]
[BlackElo "2530"]
[Result "1-0"]
[Round "10"]
[TimeControl "180+2"]
[Date "2023.01.31"]
[WhiteClock "0:00:09"]
[BlackClock "0:00:02"]

1. d4 {[%clk 0:02:59]}  Nf6 {[%clk 0:02:55]} 2. Nf3 {[%clk 0:02:58]}  c5 {[%clk 0:02:54]} 3. e3 {[%clk 0:02:57]}  b6 {[%clk 0:02:52]} 4. b3 {[%clk 0:02:57]}  g6 {[%clk 0:02:52]} 5. Bb2 {[%clk 0:02:57]}  Bg7 {[%clk 0:02:52]} 6. Nbd2 {[%clk 0:02:57]}  O-O {[%clk 0:02:51]} 7. Be2 {[%clk 0:02:58]}  Bb7 {[%clk 0:02:51]} 8. c4 {[%clk 0:02:57]}  e6 {[%clk 0:02:51]} 9. dxc5 {[%clk 0:02:57]}  bxc5 {[%clk 0:02:50]} 10. O-O {[%clk 0:02:57]}  Qe7 {[%clk 0:02:50]} 11. Ne5 {[%clk 0:02:56]}  d6 {[%clk 0:02:49]} 12. Nd3 {[%clk 0:02:56]}  Nbd7 {[%clk 0:02:48]} 13. Bf3 {[%clk 0:02:56]}  d5 {[%clk 0:02:47]} 14. Rc1 {[%clk 0:02:53]}  Rac8 {[%clk 0:02:45]} 15. Qe2 {[%clk 0:02:53]}  Nb6 {[%clk 0:02:43]} 16. Ba3 {[%clk 0:02:52]}  Nfd7 {[%clk 0:02:43]} 17. Rc2 {[%clk 0:02:46]}  Ne5 {[%clk 0:02:19]} 18. Nxe5 {[%clk 0:02:44]}  Bxe5 {[%clk 0:02:18]} 19. Rfc1 {[%clk 0:02:40]}  Ba6 {[%clk 0:02:17]} 20. Qe1 {[%clk 0:02:31]}  Bd6 {[%clk 0:02:17]} 21. Be2 {[%clk 0:02:28]}  Bb7 {[%clk 0:02:15]} 22. Bf3 {[%clk 0:02:18]}  Nd7 {[%clk 0:02:14]} 23. cxd5 {[%clk 0:02:06]}  exd5 {[%clk 0:02:13]} 24. Nc4 {[%clk 0:01:59]}  Bb8 {[%clk 0:02:12]} 25. Na5 {[%clk 0:01:58]}  Ba8 {[%clk 0:02:11]} 26. Qd1 {[%clk 0:01:51]}  Qd6 {[%clk 0:01:51]} 27. g3 {[%clk 0:01:48]}  Rfd8 {[%clk 0:01:47]} 28. b4 {[%clk 0:01:15]}  Qa6 {[%clk 0:01:29]} 29. Bxd5 {[%clk 0:00:41]}  Nf6 {[%clk 0:01:12]} 30. Bxa8 {[%clk 0:00:41]}  Rxd1+ {[%clk 0:01:10]} 31. Rxd1 {[%clk 0:00:40]}  cxb4 {[%clk 0:00:35]} 32. Bb7 {[%clk 0:00:38]}  Rxc2 {[%clk 0:00:25]} 33. Bxa6 {[%clk 0:00:36]}  bxa3 {[%clk 0:00:25]} 34. Rd8+ {[%clk 0:00:28]}  Kg7 {[%clk 0:00:25]} 35. Rxb8 {[%clk 0:00:27]}  Rxa2 {[%clk 0:00:25]} 36. Bc4 {[%clk 0:00:24]}  Rc2 {[%clk 0:00:19]} 37. Rb1 {[%clk 0:00:20]}  Ng4 {[%clk 0:00:19]} 38. Ra1 {[%clk 0:00:20]}  Nxf2 {[%clk 0:00:18]} 39. Rxa3 {[%clk 0:00:19]}  Nh3+ {[%clk 0:00:17]} 40. Kf1 {[%clk 0:00:19]}  Rxh2 {[%clk 0:00:16]} 41. Bd5 {[%clk 0:00:19]}  Rf2+ {[%clk 0:00:16]} 42. Ke1 {[%clk 0:00:19]}  Rb2 {[%clk 0:00:14]} 43. Nc4 {[%clk 0:00:18]}  Rc2 {[%clk 0:00:11]} 44. Rxa7 {[%clk 0:00:18]}  Ng5 {[%clk 0:00:12]} 45. Kd1 {[%clk 0:00:17]}  Rh2 {[%clk 0:00:10]} 46. Ne5 {[%clk 0:00:16]}  Kf6 {[%clk 0:00:10]} 47. Bxf7 {[%clk 0:00:16]}  Kxe5 {[%clk 0:00:08]} 48. Bb3 {[%clk 0:00:14]}  Rb2 {[%clk 0:00:07]} 49. Bc2 {[%clk 0:00:14]}  Nf3 {[%clk 0:00:06]} 50. Ra5+ {[%clk 0:00:13]}  Kf6 {[%clk 0:00:05]} 51. Rc5 {[%clk 0:00:12]}  h5 {[%clk 0:00:04]} 52. Ke2 {[%clk 0:00:12]}  Ne5 {[%clk 0:00:04]} 53. Ke1 {[%clk 0:00:12]}  Ra2 {[%clk 0:00:04]} 54. Rc7 {[%clk 0:00:11]}  g5 {[%clk 0:00:03]} 55. Rc5 {[%clk 0:00:11]}  g4 {[%clk 0:00:03]} 56. Kf1 {[%clk 0:00:10]}  Rb2 {[%clk 0:00:02]} 57. Rc7 {[%clk 0:00:09]}  Nf3 {[%clk 0:00:02]} 58. Rc5 {[%clk 0:00:09]} 1-0


[Site "https://www.chess.com"]

[Event "Titled Tuesday Blitz January 31 Late 2023"]
[White "Deviprasath, Sharvesh"]
[Black "Musovic, Armin"]
[WhiteFideId "30938228"]
[BlackFideId "939935"]
[WhiteElo "2296"]
[BlackElo "2261"]
[Result "1-0"]
[Round "10"]
[TimeControl "180+2"]
[Date "2023.01.31"]
[WhiteClock "0:00:20"]
[BlackClock "0:00:15"]

1. e4 {[%clk 0:03:00]}  c6 {[%clk 0:03:00]} 2. d4 {[%clk 0:02:47]}  d5 {[%clk 0:03:01]} 3. exd5 {[%clk 0:02:48]}  cxd5 {[%clk 0:03:02]} 4. c4 {[%clk 0:02:48]}  Nc6 {[%clk 0:03:02]} 5. Nc3 {[%clk 0:02:49]}  Nf6 {[%clk 0:03:03]} 6. Nf3 {[%clk 0:02:50]}  Bg4 {[%clk 0:03:03]} 7. cxd5 {[%clk 0:02:50]}  Nxd5 {[%clk 0:03:04]} 8. Qb3 {[%clk 0:02:50]}  Bxf3 {[%clk 0:03:05]} 9. gxf3 {[%clk 0:02:51]}  Nb6 {[%clk 0:03:06]} 10. d5 {[%clk 0:02:25]}  Nd4 {[%clk 0:03:06]} 11. Bb5+ {[%clk 0:02:24]}  Nd7 {[%clk 0:03:06]} 12. Qd1 {[%clk 0:02:18]}  Nxb5 {[%clk 0:03:02]} 13. Nxb5 {[%clk 0:02:19]}  Qa5+ {[%clk 0:02:49]} 14. Nc3 {[%clk 0:02:16]}  g6 {[%clk 0:02:36]} 15. h4 {[%clk 0:01:51]}  Bg7 {[%clk 0:02:31]} 16. O-O {[%clk 0:01:36]}  O-O {[%clk 0:02:22]} 17. Re1 {[%clk 0:01:12]}  Rfe8 {[%clk 0:02:05]} 18. Bg5 {[%clk 0:01:08]}  Nf6 {[%clk 0:01:54]} 19. d6 {[%clk 0:01:05]}  exd6 {[%clk 0:01:46]} 20. Qxd6 {[%clk 0:01:06]}  Nh5 {[%clk 0:01:37]} 21. Rxe8+ {[%clk 0:00:55]}  Rxe8 {[%clk 0:01:38]} 22. Qd7 {[%clk 0:00:55]}  Qe5 {[%clk 0:01:24]} 23. Qxb7 {[%clk 0:00:44]}  h6 {[%clk 0:01:18]} 24. Be3 {[%clk 0:00:42]}  Qf6 {[%clk 0:01:11]} 25. Nd5 {[%clk 0:00:35]}  Qxh4 {[%clk 0:01:07]} 26. Rc1 {[%clk 0:00:28]}  Rxe3 {[%clk 0:00:37]} 27. Rc8+ {[%clk 0:00:25]}  Bf8 {[%clk 0:00:13]} 28. Nxe3 {[%clk 0:00:19]}  Qg5+ {[%clk 0:00:12]} 29. Kf1 {[%clk 0:00:19]}  Nf6 {[%clk 0:00:05]} 30. Qb8 {[%clk 0:00:17]}  Nh7 {[%clk 0:00:04]} 31. Qxa7 {[%clk 0:00:17]}  Qb5+ {[%clk 0:00:04]} 32. Kg1 {[%clk 0:00:16]}  Qg5+ {[%clk 0:00:05]} 33. Kf1 {[%clk 0:00:10]}  Qb5+ {[%clk 0:00:05]} 34. Nc4 {[%clk 0:00:11]}  Qd5 {[%clk 0:00:04]} 35. Qa8 {[%clk 0:00:09]}  Qd3+ {[%clk 0:00:04]} 36. Kg2 {[%clk 0:00:10]}  Qf5 {[%clk 0:00:01]} 37. Qe4 {[%clk 0:00:11]}  Qg5+ {[%clk 0:00:01]} 38. Qg4 {[%clk 0:00:11]}  Qe7 {[%clk 0:00:02]} 39. a4 {[%clk 0:00:12]}  Nf6 {[%clk 0:00:03]} 40. Qg3 {[%clk 0:00:11]}  Nh5 {[%clk 0:00:04]} 41. Qb8 {[%clk 0:00:11]}  g5 {[%clk 0:00:03]} 42. Rxf8+ {[%clk 0:00:12]}  Qxf8 {[%clk 0:00:03]} 43. Qxf8+ {[%clk 0:00:13]}  Kxf8 {[%clk 0:00:04]} 44. a5 {[%clk 0:00:14]}  Nf4+ {[%clk 0:00:05]} 45. Kg3 {[%clk 0:00:14]}  Ne2+ {[%clk 0:00:05]} 46. Kg4 {[%clk 0:00:14]}  Nd4 {[%clk 0:00:06]} 47. a6 {[%clk 0:00:14]}  Kg7 {[%clk 0:00:07]} 48. a7 {[%clk 0:00:13]}  Kg6 {[%clk 0:00:08]} 49. a8=Q {[%clk 0:00:14]}  h5+ {[%clk 0:00:08]} 50. Kg3 {[%clk 0:00:14]}  h4+ {[%clk 0:00:08]} 51. Kg2 {[%clk 0:00:14]}  Ne6 {[%clk 0:00:08]} 52. Qe4+ {[%clk 0:00:15]}  Kh6 {[%clk 0:00:08]} 53. b4 {[%clk 0:00:14]}  Nf4+ {[%clk 0:00:07]} 54. Qxf4 {[%clk 0:00:15]}  gxf4 {[%clk 0:00:08]} 55. Kh3 {[%clk 0:00:16]}  Kh5 {[%clk 0:00:08]} 56. b5 {[%clk 0:00:16]}  f5 {[%clk 0:00:09]} 57. b6 {[%clk 0:00:17]}  Kg5 {[%clk 0:00:10]} 58. b7 {[%clk 0:00:18]}  Kh5 {[%clk 0:00:11]} 59. b8=Q {[%clk 0:00:18]}  Kg5 {[%clk 0:00:12]} 60. Qe5 {[%clk 0:00:19]}  Kh5 {[%clk 0:00:12]} 61. Qxf4 {[%clk 0:00:19]}  Kg6 {[%clk 0:00:13]} 62. Kxh4 {[%clk 0:00:18]}  Kf7 {[%clk 0:00:13]} 63. Qd6 {[%clk 0:00:19]}  Kg8 {[%clk 0:00:14]} 64. Kg5 {[%clk 0:00:20]}  Kh8 {[%clk 0:00:15]} 65. Qd7 {[%clk 0:00:20]}  f4 {[%clk 0:00:15]} 66. Kg6 {[%clk 0:00:20]} 1-0


[Site "https://www.chess.com"]

[Event "Titled Tuesday Blitz January 31 Late 2023"]
[White "Bas Mas, Jose Joaquin"]
[Black "Goroshkov, Maksym"]
[WhiteFideId "22219064"]
[BlackFideId "14142716"]
[WhiteElo "2197"]
[BlackElo "2287"]
[Result "1-0"]
[Round "10"]
[TimeControl "180+2"]
[Date "2023.01.31"]
[WhiteClock "0:01:37"]
[BlackClock "0:01:49"]

1. e4 {[%clk 0:03:00]}  e5 {[%clk 0:02:59]} 2. Nf3 {[%clk 0:03:00]}  d6 {[%clk 0:03:00]} 3. d4 {[%clk 0:02:55]}  Bg4 {[%clk 0:03:00]} 4. Nc3 {[%clk 0:02:52]}  Nc6 {[%clk 0:02:59]} 5. Be3 {[%clk 0:02:50]}  exd4 {[%clk 0:02:58]} 6. Bxd4 {[%clk 0:02:48]}  Bxf3 {[%clk 0:02:55]} 7. gxf3 {[%clk 0:02:48]}  Nxd4 {[%clk 0:02:55]} 8. Qxd4 {[%clk 0:02:49]}  Nf6 {[%clk 0:02:52]} 9. O-O-O {[%clk 0:02:48]}  Be7 {[%clk 0:02:52]} 10. h4 {[%clk 0:02:47]}  O-O {[%clk 0:02:47]} 11. h5 {[%clk 0:02:47]}  h6 {[%clk 0:02:45]} 12. f4 {[%clk 0:02:44]}  c5 {[%clk 0:02:41]} 13. Qe3 {[%clk 0:02:42]}  Qa5 {[%clk 0:02:39]} 14. Kb1 {[%clk 0:02:35]}  b5 {[%clk 0:02:30]} 15. e5 {[%clk 0:02:34]}  dxe5 {[%clk 0:02:26]} 16. fxe5 {[%clk 0:02:33]}  Nh7 {[%clk 0:02:25]} 17. Rg1 {[%clk 0:02:31]}  Ng5 {[%clk 0:02:20]} 18. f4 {[%clk 0:02:26]}  Ne6 {[%clk 0:02:20]} 19. Nd5 {[%clk 0:02:17]}  Bd8 {[%clk 0:02:14]} 20. f5 {[%clk 0:02:13]}  Bg5 {[%clk 0:02:14]} 21. Qe4 {[%clk 0:01:57]}  Nd4 {[%clk 0:02:11]} 22. f6 {[%clk 0:01:48]}  Ne6 {[%clk 0:02:02]} 23. Bd3 {[%clk 0:01:44]}  g6 {[%clk 0:01:48]} 24. hxg6 {[%clk 0:01:44]}  c4 {[%clk 0:01:48]} 25. Ne7+ {[%clk 0:01:37]}  Kh8 {[%clk 0:01:48]} 26. g7+ {[%clk 0:01:37]}  Nxg7 {[%clk 0:01:49]} 27. Qh7# {[%clk 0:01:37]} 1-0


[Site "https://www.chess.com"]

[Event "Titled Tuesday Blitz January 31 Late 2023"]
[White "Danielyan, Vahe"]
[Black "Pasti, Aron"]
[WhiteFideId "13304828"]
[BlackFideId "785857"]
[WhiteElo "2346"]
[BlackElo "2361"]
[Result "1-0"]
[Round "10"]
[TimeControl "180+2"]
[Date "2023.01.31"]
[WhiteClock "0:01:29"]
[BlackClock "0:00:14"]

1. e4 {[%clk 0:03:00]}  c5 {[%clk 0:02:58]} 2. Nc3 {[%clk 0:03:01]}  Nc6 {[%clk 0:02:58]} 3. Bb5 {[%clk 0:03:00]}  Nd4 {[%clk 0:02:57]} 4. Bc4 {[%clk 0:03:00]}  e6 {[%clk 0:02:50]} 5. Nge2 {[%clk 0:02:59]}  Ne7 {[%clk 0:02:49]} 6. Nxd4 {[%clk 0:02:58]}  cxd4 {[%clk 0:02:49]} 7. Ne2 {[%clk 0:02:58]}  Nc6 {[%clk 0:02:44]} 8. O-O {[%clk 0:02:58]}  Be7 {[%clk 0:02:38]} 9. c3 {[%clk 0:02:57]}  Qb6 {[%clk 0:02:29]} 10. b4 {[%clk 0:02:48]}  O-O {[%clk 0:02:27]} 11. a4 {[%clk 0:02:45]}  a5 {[%clk 0:02:26]} 12. b5 {[%clk 0:02:43]}  Ne5 {[%clk 0:02:26]} 13. Bb3 {[%clk 0:02:43]}  d3 {[%clk 0:02:21]} 14. Ng3 {[%clk 0:02:40]}  d5 {[%clk 0:02:07]} 15. Kh1 {[%clk 0:02:37]}  dxe4 {[%clk 0:02:00]} 16. Qh5 {[%clk 0:02:08]}  f5 {[%clk 0:01:58]} 17. Nxf5 {[%clk 0:02:08]}  Bf6 {[%clk 0:01:04]} 18. Ba3 {[%clk 0:02:03]}  g6 {[%clk 0:00:55]} 19. Nh6+ {[%clk 0:01:58]}  Kh8 {[%clk 0:00:55]} 20. Qh3 {[%clk 0:01:58]}  Rd8 {[%clk 0:00:39]} 21. Rae1 {[%clk 0:01:58]}  Bd7 {[%clk 0:00:29]} 22. Rxe4 {[%clk 0:01:56]}  Qc7 {[%clk 0:00:24]} 23. Rxe5 {[%clk 0:01:41]}  Bxe5 {[%clk 0:00:20]} 24. Nf7+ {[%clk 0:01:42]}  Kg7 {[%clk 0:00:17]} 25. Qh6+ {[%clk 0:01:41]}  Kxf7 {[%clk 0:00:16]} 26. Qxh7+ {[%clk 0:01:38]}  Bg7 {[%clk 0:00:16]} 27. Qh3 {[%clk 0:01:36]}  Qf4 {[%clk 0:00:15]} 28. Re1 {[%clk 0:01:29]}  Qxf2 {[%clk 0:00:15]} 29. Bxe6+ {[%clk 0:01:29]}  Ke8 {[%clk 0:00:14]} 30. Bxd7+ {[%clk 0:01:28]}  Kf7 {[%clk 0:00:14]} 31. Qe6# {[%clk 0:01:29]} 1-0


[Site "https://www.chess.com"]